fUST/lending_fUST_20250713
["ID","MTS","AMOUNT","RATE_DAILY","PERIOD"]
[371736866,1752408649960,-460.0,0.0001726,2]
[371736867,1752408649970,-460.0,0.0001726,2]
[371736868,1752408649980,-460.0,0.0001726,2]
[371736869,1752408649988,-460.0,0.0001726,2]
[371736870,1752408650087,-545.2,0.0001726,2]
[371736871,1752408650097,-460.0,0.0001726,2]
[371736872,1752408650107,-460.0,0.0001726,2]
[371736873,1752408650117,-460.0,0.0001726,2]
[371736874,1752408650126,-591.03,0.0001726,2]
[371736875,1752408650136,-460.0,0.0001726,2]
[371736876,1752408650147,-460.0,0.0001726,2]
[371736877,1752408650156,-460.0,0.0001726,2]
[371736878,1752408650165,-460.0,0.0001726,2]
[371736879,1752408650175,-460.0,0.0001726,2]
[371736880,1752408650186,-460.0,0.0001726,2]
[371736881,1752408650195,-460.0,0.0001726,2]
[371736882,1752408650205,-500.69799627,0.0001726,2]
[371736883,1752408650216,-460.0,0.0001726,2]
[371736884,1752408650225,-460.0,0.0001726,2]
[371736885,1752408650237,-460.0,0.0001726,2]
[371736886,1752408650246,-460.0,0.0001726,2]
[371736887,1752408650257,-460.0,0.0001726,2]
[371736888,1752408650266,-460.0,0.0001726,2]
[371736889,1752408650276,-460.0,0.0001726,2]
[371736890,1752408650286,-460.0,0.0001726,2]
[371736891,1752408650295,-460.0,0.0001726,2]
[371736892,1752408650304,-460.0,0.0001726,2]
[371736893,1752408650314,-460.0,0.0001726,2]
[371736894,1752408650323,-460.0,0.0001726,2]
[371736895,1752408650332,-510.43,0.0001726,2]
[371736896,1752408650341,-460.0,0.0001726,2]
[371736897,1752408650350,-460.0,0.0001726,2]
[371736898,1752408650359,-460.0,0.0001726,2]
[371736899,1752408650368,-460.0,0.0001726,2]
[371736900,1752408650382,-460.0,0.0001726,2]
[371736901,1752408650393,-460.0,0.0001726,2]
[371736902,1752408650402,-460.0,0.0001726,2]
[371736903,1752408650412,-460.0,0.0001726,2]
[371736904,1752408650423,-460.0,0.0001726,2]
[371736905,1752408650432,-460.0,0.0001726,2]
[371736906,1752408650441,-460.0,0.0001726,2]
[371736907,1752408650451,-460.0,0.0001726,2]
[371736908,1752408650460,-460.0,0.0001726,2]
[371736909,1752408650470,-460.0,0.0001726,2]
[371736910,1752408650479,-440.03700064,0.0001726,2]
[371736911,1752408650488,-460.0,0.0001726,2]
[371736912,1752408650497,-460.0,0.0001726,2]
[371736913,1752408650506,-318.55648491,0.0001726,2]
[371736914,1752408650515,-681.44,0.0001726,2]
[371736915,1752408650523,-460.0,0.0001726,2]
[371736916,1752408650533,-460.0,0.0001726,2]
[371736917,1752408650542,-460.0,0.0001726,2]
[371736918,1752408650551,-460.0,0.0001726,2]
[371736919,1752408650560,-460.0,0.0001726,2]
[371736920,1752408650569,-443.65888147,0.0001726,2]
[371736921,1752408650578,-460.0,0.0001726,2]
[371736922,1752408650588,-535.71,0.0001726,2]
[371736923,1752408650598,-460.0,0.0001726,2]
[371736924,1752408650607,-460.0,0.0001726,2]
[371736925,1752408650615,-460.0,0.0001726,2]
[371736926,1752408650624,-460.0,0.0001726,2]
[371736927,1752408650633,-460.0,0.0001726,2]
[371736928,1752408650644,-460.0,0.0001726,2]
[371736929,1752408650653,-2008.35,0.0001726,2]
[371736930,1752408650662,-460.0,0.0001726,2]
[371736931,1752408650671,-460.0,0.0001726,2]
[371736932,1752408650680,-509.47,0.0001726,2]
[371736933,1752408650689,-463.15584125,0.0001726,2]
[371736934,1752408650698,-460.0,0.0001726,2]
[371736935,1752408650707,-625.25,0.0001726,2]
[371736936,1752408650716,-460.0,0.0001726,2]
[371736937,1752408650726,-860.44,0.0001726,2]
[371736938,1752408650735,-480.85,0.0001726,2]
[371736939,1752408650744,-350.72989772,0.0001726,2]
[371736940,1752408650753,-2541.88,0.0001726,2]
[371736941,1752408650763,-460.0,0.0001726,2]
[371736942,1752408650772,-460.0,0.0001726,2]
[371736943,1752408650782,-460.0,0.0001726,2]
[371736944,1752408650791,-460.0,0.0001726,2]
[371736945,1752408650800,-460.0,0.0001726,2]
[371736946,1752408650809,-508.56,0.0001726,2]
[371736947,1752408650818,-460.0,0.0001726,2]
[371736948,1752408650826,-1859.21,0.0001726,2]
[371736949,1752408650835,-460.0,0.0001726,2]
[371736950,1752408650844,-796.49,0.0001726,2]
[371736951,1752408650854,-460.0,0.0001726,2]
[371736952,1752408650863,-460.0,0.0001726,2]
[371736953,1752408650872,-460.0,0.0001726,2]
[371736954,1752408650881,-460.0,0.0001726,2]
[371736955,1752408650891,-460.0,0.0001726,2]
[371736956,1752408650901,-460.0,0.0001726,2]
[371736957,1752408650910,-460.0,0.0001726,2]
[371736958,1752408650920,-593.15,0.0001726,2]
[371736959,1752408650930,-661.39,0.0001726,2]
[371736960,1752408650939,-460.0,0.0001726,2]
[371736961,1752408650949,-460.0,0.0001726,2]
[371736962,1752408650959,-460.0,0.0001726,2]
[371736963,1752408650968,-460.0,0.0001726,2]
[371736964,1752408650986,-460.0,0.0001726,2]
[371736965,1752408651000,-1329.88,0.0001726,2]
[371736966,1752408651014,-476.56,0.0001726,2]
[371736967,1752408651028,-465.37586871,0.0001726,2]
[371736968,1752408651043,-460.0,0.0001726,2]
[371736969,1752408651058,-2597.34,0.0001726,2]
[371736970,1752408651072,-1127.18,0.0001726,2]
[371736971,1752408651088,-460.0,0.0001726,2]
[371736972,1752408651102,-460.0,0.0001726,2]
[371736973,1752408651116,-460.0,0.0001726,2]
[371736974,1752408651129,-460.0,0.0001726,2]
[371736975,1752408651143,-460.0,0.0001726,2]
[371736976,1752408651158,-460.0,0.0001726,2]
[371736977,1752408651171,-460.0,0.0001726,2]
[371736978,1752408651182,-460.0,0.0001726,2]
[371736979,1752408651195,-707.62,0.0001726,2]
[371736980,1752408651208,-460.0,0.0001726,2]
[371736981,1752408651222,-500.94,0.0001726,2]
[371736982,1752408651237,-460.0,0.0001726,2]
[371736983,1752408651252,-602.57,0.0001726,2]
[371736984,1752408651267,-939.64,0.0001726,2]
[371736985,1752408651283,-460.0,0.0001726,2]
[371736986,1752408651294,-460.0,0.0001726,2]
[371736987,1752408651305,-460.0,0.0001726,2]
[371736988,1752408651319,-460.0,0.0001726,2]
[371736989,1752408651334,-1083.77,0.0001726,2]
[371736990,1752408651348,-460.0,0.0001726,2]
[371736991,1752408651359,-525.69,0.0001726,2]
[371736992,1752408651373,-460.0,0.0001726,2]
[371736993,1752408651387,-460.0,0.0001726,2]
[371736994,1752408651402,-460.0,0.0001726,2]
[371736995,1752408651414,-460.0,0.0001726,2]
[371736996,1752408651426,-460.0,0.0001726,2]
[371736997,1752408651438,-460.0,0.0001726,2]
[371736998,1752408651449,-190.84,0.0001726,2]
[371736999,1752408651461,-662.48,0.0001726,2]
[371737000,1752408651473,-460.0,0.0001726,2]
[371737001,1752408651485,-460.0,0.0001726,2]
[371737002,1752408651497,-460.0,0.0001726,2]
[371737003,1752408651509,-460.0,0.0001726,2]
[371737004,1752408651520,-2526.29,0.0001726,2]
[371737005,1752408651532,-694.75,0.0001726,2]
[371737006,1752408651544,-1097.19,0.0001726,2]
[371737007,1752408651557,-460.0,0.0001726,2]
[371737008,1752408651568,-460.0,0.0001726,2]
[371737009,1752408651579,-460.0,0.0001726,2]
[371737010,1752408651591,-578.96,0.0001726,2]
[371737011,1752408651603,-560.96,0.0001726,2]
[371737012,1752408651614,-408.43,0.0001726,2]
[371737013,1752408651626,-460.0,0.0001726,2]
[371737014,1752408651638,-1292.24,0.0001726,2]
[371737015,1752408651650,-2770.38015596,0.00017297,2]
[371737016,1752408651662,-1000.0,0.00017321,2]
[371737017,1752408651674,-457.43349717,0.00017321,2]
[371737018,1752408651686,-1006.97598134,0.00017321,2]
[371737019,1752408651699,-578.16123065,0.00017321,2]
[371737020,1752408651711,-673.82905292,0.00017321,2]
[371737021,1752408651722,-504.93958316,0.00017321,2]
[371737022,1752408651735,-1000.0,0.00017321,2]
[371737023,1752408651747,-501.58885187,0.00017321,2]
[371737024,1752408651759,-1000.0,0.00017321,2]
[371737025,1752408651770,-500.0,0.00017321,2]
[371737026,1752408651782,-987.80547386,0.00017321,2]
[371737027,1752408651794,-1000.0,0.00017321,2]
[371737028,1752408651806,-1000.0,0.00017321,2]
[371737029,1752408651819,-1000.0,0.00017321,2]
[371737030,1752408651832,-1000.0,0.00017321,2]
[371737031,1752408651844,-1025.77011804,0.00017321,2]
[371737032,1752408651856,-1000.0,0.00017321,2]
[371737033,1752408651869,-500.0,0.00017321,2]
[371737034,1752408651882,-298.37354529,0.00017351,2]
[371737035,1752408651895,-500.0,0.00017351,2]
[371737036,1752408651907,-632.43968862,0.00017351,2]
[371737037,1752408651919,-503.24985721,0.00017351,2]
[371737038,1752408651931,-500.0,0.00017351,2]
[371737039,1752408651943,-500.0,0.00017429,2]
[371737040,1752408651955,-1000.0,0.00017521,2]
[371737041,1752408651967,-1000.0,0.00017521,2]
[371737042,1752408651980,-1000.0,0.00017521,2]
[371737043,1752408651992,-2899.58639643,0.00017521,2]
[371737044,1752408652004,-216.764323,0.00017521,2]
[371737045,1752408652016,-216.764323,0.00017521,2]
[371737046,1752408652026,-460.0,0.00017534,2]
[371737047,1752408652035,-460.0,0.00017534,2]
[371737048,1752408652045,-164.33,0.00017534,2]
[371737049,1752408652055,-460.0,0.00017534,2]
[371737050,1752408652064,-460.0,0.00017534,2]
[371737051,1752408652074,-460.0,0.00017534,2]
[371737052,1752408652084,-460.0,0.00017534,2]
[371737053,1752408652094,-545.2,0.00017534,2]
[371737054,1752408652267,-363.55788211,0.00017534,2]
[371737055,1752408652287,-460.0,0.00017534,2]
[371737056,1752408652300,-591.03,0.00017534,2]
[371737057,1752408652316,-460.0,0.00017534,2]
[371737058,1752408652328,-460.0,0.00017534,2]
[371737059,1752408652338,-460.0,0.00017534,2]
[371737060,1752408652347,-229.25,0.00017534,2]
[371737061,1752408652357,-293.148763,0.00017534,2]
[371737062,1752408652367,-460.0,0.00017534,2]
[371737063,1752408652380,-460.0,0.00017534,2]
[371737064,1752408652389,-460.0,0.00017534,2]
[371737065,1752408652400,-460.0,0.00017534,2]
[371737066,1752408652410,-460.0,0.00017534,2]
[371737067,1752408652421,-460.0,0.00017534,2]
[371737068,1752408652430,-460.0,0.00017534,2]
[371737069,1752408652440,-460.0,0.00017534,2]
[371737070,1752408652449,-178.41707324,0.00017534,2]
[371737071,1752408652459,-460.0,0.00017534,2]
[371737072,1752408652469,-460.0,0.00017534,2]
[371737073,1752408652478,-284.65942692,0.00017534,2]
[371737074,1752408652487,-510.43,0.00017534,2]
[371737075,1752408652497,-460.0,0.00017534,2]
[371737076,1752408652507,-460.0,0.00017534,2]
[371737077,1752408652515,-460.0,0.00017534,2]
[371737078,1752408652524,-460.0,0.00017534,2]
[371737079,1752408652534,-460.0,0.00017534,2]
[371737080,1752408652543,-216.84161138,0.00017534,2]
[371737081,1752408652554,-460.0,0.00017534,2]
[371737082,1752408652563,-460.0,0.00017534,2]
[371737083,1752408652572,-475.9132921,0.00017534,2]
[371737084,1752408652581,-460.0,0.00017534,2]
[371737085,1752408652591,-460.0,0.00017534,2]
[371737086,1752408652599,-460.0,0.00017534,2]
[371737087,1752408652608,-460.0,0.00017534,2]
[371737088,1752408652618,-460.0,0.00017534,2]
[371737089,1752408652628,-681.44,0.00017534,2]
[371737090,1752408652637,-460.0,0.00017534,2]
[371737091,1752408652647,-460.0,0.00017534,2]
[371737092,1752408652656,-460.0,0.00017534,2]
[371737093,1752408652665,-460.0,0.00017534,2]
[371737094,1752408652675,-460.0,0.00017534,2]
[371737095,1752408652687,-535.71,0.00017534,2]
[371737096,1752408652696,-509.58,0.00017534,2]
[371737097,1752408652705,-460.0,0.00017534,2]
[371737098,1752408652714,-460.0,0.00017534,2]
[371737099,1752408652723,-460.0,0.00017534,2]
[371737100,1752408652733,-460.0,0.00017534,2]
[371737101,1752408652742,-460.0,0.00017534,2]
[371737102,1752408652751,-2008.35,0.00017534,2]
[371737103,1752408652760,-162.39,0.00017534,2]
[371737104,1752408652770,-460.0,0.00017534,2]
[371737105,1752408652779,-509.47,0.00017534,2]
[371737106,1752408652789,-460.0,0.00017534,2]
[371737107,1752408652799,-625.25,0.00017534,2]
[371737108,1752408652808,-460.0,0.00017534,2]
[371737109,1752408652818,-860.44,0.00017534,2]
[371737110,1752408652827,-480.85,0.00017534,2]
[371737111,1752408652836,-2541.88,0.00017534,2]
[371737112,1752408652845,-460.0,0.00017534,2]
[371737113,1752408652854,-460.0,0.00017534,2]
[371737114,1752408652864,-460.0,0.00017534,2]
[371737115,1752408652873,-227.09,0.00017534,2]
[371737116,1752408652883,-508.56,0.00017534,2]
[371737117,1752408652894,-414.72475317,0.00017534,2]
[371737118,1752408652903,-1859.21,0.00017534,2]
[371737119,1752408652912,-281.19887932,0.00017534,2]
[371737120,1752408652922,-796.49,0.00017534,2]
[371737121,1752408652931,-460.0,0.00017534,2]
[371737122,1752408652941,-460.0,0.00017534,2]
[371737123,1752408652951,-460.0,0.00017534,2]
[371737124,1752408652960,-460.0,0.00017534,2]
[371737125,1752408652969,-460.0,0.00017534,2]
[371737126,1752408652978,-460.0,0.00017534,2]
[371737127,1752408652988,-460.0,0.00017534,2]
[371737128,1752408652997,-593.15,0.00017534,2]
[371737129,1752408653006,-661.39,0.00017534,2]
[371737130,1752408653015,-460.0,0.00017534,2]
[371737131,1752408653025,-460.0,0.00017534,2]
[371737132,1752408653034,-460.0,0.00017534,2]
[371737133,1752408653043,-460.0,0.00017534,2]
[371737134,1752408653053,-460.0,0.00017534,2]
[371737135,1752408653062,-1329.88,0.00017534,2]
[371737136,1752408653071,-476.56,0.00017534,2]
[371737137,1752408653082,-308.23273044,0.00017534,2]
[371737138,1752408653092,-2597.34,0.00017534,2]
[371737139,1752408653102,-1127.18,0.00017534,2]
[371737140,1752408653112,-460.0,0.00017534,2]
[371737141,1752408653121,-460.0,0.00017534,2]
[371737142,1752408653130,-460.0,0.00017534,2]
[371737143,1752408653140,-460.0,0.00017534,2]
[371737144,1752408653150,-460.0,0.00017534,2]
[371737145,1752408653160,-460.0,0.00017534,2]
[371737146,1752408653169,-460.0,0.00017534,2]
[371737147,1752408653179,-707.62,0.00017534,2]
[371737148,1752408653191,-460.0,0.00017534,2]
[371737149,1752408653201,-500.94,0.00017534,2]
[371737150,1752408653211,-460.0,0.00017534,2]
[371737151,1752408653221,-602.57,0.00017534,2]
[371737152,1752408653230,-939.64,0.00017534,2]
[371737153,1752408653240,-460.0,0.00017534,2]
[371737154,1752408653249,-460.0,0.00017534,2]
[371737155,1752408653259,-460.0,0.00017534,2]
[371737156,1752408653268,-238.1678258,0.00017534,2]
[371737157,1752408653278,-1083.77,0.00017534,2]
[371737158,1752408653287,-525.69,0.00017534,2]
[371737159,1752408653297,-460.0,0.00017534,2]
[371737160,1752408653307,-460.0,0.00017534,2]
[371737161,1752408653317,-460.0,0.00017534,2]
[371737162,1752408653333,-460.0,0.00017534,2]
[371737163,1752408653343,-460.0,0.00017534,2]
[371737164,1752408653353,-662.48,0.00017534,2]
[371737165,1752408653363,-460.0,0.00017534,2]
[371737166,1752408653374,-460.0,0.00017534,2]
[371737167,1752408653390,-460.0,0.00017534,2]
[371737168,1752408653402,-460.0,0.00017534,2]
[371737169,1752408653412,-2526.29,0.00017534,2]
[371737170,1752408653423,-694.75,0.00017534,2]
[371737171,1752408653432,-1097.19,0.00017534,2]
[371737172,1752408653442,-460.0,0.00017534,2]
[371737173,1752408653451,-460.0,0.00017534,2]
[371737174,1752408653461,-460.0,0.00017534,2]
[371737175,1752408653471,-578.96,0.00017534,2]
[371737176,1752408653480,-560.96,0.00017534,2]
[371737177,1752408653490,-460.0,0.00017534,2]
[371737178,1752408653499,-1292.24,0.00017534,2]
[371737179,1752408653509,-500.0,0.00017573,2]
[371737180,1752408653518,-161.37660368,0.00017573,2]
[371737181,1752408653528,-500.0,0.00017573,2]
[371737182,1752408653537,-500.0,0.00017573,2]
[371737183,1752408653547,-500.0,0.00017573,2]
[371737184,1752408653557,-643.63847005,0.00017573,2]
[371737185,1752408653566,-500.0,0.00017573,2]
[371737186,1752408653576,-500.29892395,0.00017573,2]
[371737187,1752408653585,-500.0,0.00017573,2]
[371737188,1752408653594,-500.0,0.00017573,2]
[371737189,1752408653604,-500.0,0.00017573,2]
[371737190,1752408653613,-503.11993608,0.00017573,2]
[371737191,1752408653622,-500.0,0.00017573,2]
[371737192,1752408653632,-618.04136094,0.00017573,2]
[371737193,1752408653643,-500.0,0.00017573,2]
[371737194,1752408653652,-57819.38048613,0.00017599,2]
[371737195,1752408653661,-322.5577076,0.00017604,2]
[371737196,1752408653671,-500.0,0.00017776,2]
[371737197,1752408653680,-500.0,0.00017776,2]
[371737198,1752408653690,-500.0,0.00017776,2]
[371737199,1752408653699,-425.47676807,0.00017776,2]
[371737200,1752408653709,-500.0,0.00017776,2]
[371737201,1752408653718,-500.0,0.00017776,2]
[371737202,1752408653727,-500.0,0.00017776,2]
[371737203,1752408653736,-500.0,0.00017776,2]
[371737204,1752408653746,-500.0,0.00017776,2]
[371737205,1752408653755,-573.40300686,0.00017776,2]
[371737206,1752408653764,-500.0,0.00017776,2]
[371737207,1752408653774,-500.0,0.00017776,2]
[371737208,1752408653783,-500.0,0.00017776,2]
[371737209,1752408653792,-500.0,0.00017776,2]
[371737210,1752408653801,-500.0,0.00017776,2]
[371737211,1752408653811,-500.0,0.00017776,2]
[371737212,1752408653821,-2770.38015596,0.00017777,2]
[371737213,1752408653830,-1742.96,0.00017798,3]
[371737214,1752408653839,-871.48,0.00017798,3]
[371737215,1752408653848,-435.74,0.00017798,3]
[371737216,1752408653858,-460.0,0.00017808,2]
[371737217,1752408653867,-460.0,0.00017808,2]
[371737218,1752408653877,-460.0,0.00017808,2]
[371737219,1752408653886,-216.764323,0.00017808,2]
[371737220,1752408653896,-216.764323,0.00017808,2]
[371737221,1752408653906,-445.7190445,0.00017808,2]
[371737222,1752408653915,-460.0,0.00017808,2]
[371737223,1752408653925,-545.2,0.00017808,2]
[371737224,1752408653935,-591.03,0.00017808,2]
[371737225,1752408653944,-463.71139512,0.00017808,2]
[371737226,1752408653954,-460.0,0.00017808,2]
[371737227,1752408653964,-466.49075924,0.00017808,2]
[371737228,1752408653974,-460.0,0.00017808,2]
[371737229,1752408653984,-460.0,0.00017808,2]
[371737230,1752408653995,-460.0,0.00017808,2]
[371737231,1752408654005,-460.0,0.00017808,2]
[371737232,1752408654015,-460.0,0.00017808,2]
[371737233,1752408654025,-460.0,0.00017808,2]
[371737234,1752408654035,-460.0,0.00017808,2]
[371737235,1752408654044,-460.0,0.00017808,2]
[371737236,1752408654053,-510.43,0.00017808,2]
[371737237,1752408654062,-460.0,0.00017808,2]
[371737238,1752408654072,-257.65104003,0.00017808,2]
[371737239,1752408654082,-460.0,0.00017808,2]
[371737240,1752408654091,-460.0,0.00017808,2]
[371737241,1752408654100,-460.0,0.00017808,2]
[371737242,1752408654110,-460.0,0.00017808,2]
[371737243,1752408654119,-460.0,0.00017808,2]
[371737244,1752408654130,-460.0,0.00017808,2]
[371737245,1752408654139,-460.0,0.00017808,2]
[371737246,1752408654150,-460.0,0.00017808,2]
[371737247,1752408654160,-460.0,0.00017808,2]
[371737248,1752408654170,-681.44,0.00017808,2]
[371737249,1752408654179,-460.0,0.00017808,2]
[371737250,1752408654189,-460.0,0.00017808,2]
[371737251,1752408654199,-451.22299151,0.00017808,2]
[371737252,1752408654209,-564.40708314,0.00017808,2]
[371737253,1752408654219,-535.71,0.00017808,2]
[371737254,1752408654229,-460.0,0.00017808,2]
[371737255,1752408654239,-460.0,0.00017808,2]
[371737256,1752408654249,-460.0,0.00017808,2]
[371737257,1752408654258,-460.0,0.00017808,2]
[371737258,1752408654268,-2008.35,0.00017808,2]
[371737259,1752408654278,-593.79445313,0.00017808,2]
[371737260,1752408654287,-509.47,0.00017808,2]
[371737261,1752408654296,-460.0,0.00017808,2]
[371737262,1752408654306,-625.25,0.00017808,2]
[371737263,1752408654316,-460.0,0.00017808,2]
[371737264,1752408654326,-860.44,0.00017808,2]
[371737265,1752408654336,-480.85,0.00017808,2]
[371737266,1752408654345,-2541.88,0.00017808,2]
[371737267,1752408654355,-460.0,0.00017808,2]
[371737268,1752408654365,-460.0,0.00017808,2]
[371737269,1752408654377,-327.71838445,0.00017808,2]
[371737270,1752408654387,-508.56,0.00017808,2]
[371737271,1752408654397,-1859.21,0.00017808,2]
[371737272,1752408654407,-796.49,0.00017808,2]
[371737273,1752408654417,-460.0,0.00017808,2]
[371737274,1752408654427,-460.0,0.00017808,2]
[371737275,1752408654436,-460.0,0.00017808,2]
[371737276,1752408654447,-460.0,0.00017808,2]
[371737277,1752408654457,-460.0,0.00017808,2]
[371737278,1752408654467,-593.15,0.00017808,2]
[371737279,1752408654477,-661.39,0.00017808,2]
[371737280,1752408654487,-460.0,0.00017808,2]
[371737281,1752408654496,-460.0,0.00017808,2]
[371737282,1752408654506,-460.0,0.00017808,2]
[371737283,1752408654516,-460.0,0.00017808,2]
[371737284,1752408654525,-471.94,0.00017808,2]
[371737285,1752408654535,-1329.88,0.00017808,2]
[371737286,1752408654544,-476.56,0.00017808,2]
[371737287,1752408654554,-2597.34,0.00017808,2]
[371737288,1752408654564,-1127.18,0.00017808,2]
[371737289,1752408654573,-467.42799594,0.00017808,2]
[371737290,1752408654582,-460.0,0.00017808,2]
[371737291,1752408654591,-460.0,0.00017808,2]
[371737292,1752408654602,-460.0,0.00017808,2]
[371737293,1752408654611,-460.0,0.00017808,2]
[371737294,1752408654621,-460.0,0.00017808,2]
[371737295,1752408654630,-460.0,0.00017808,2]
[371737296,1752408654642,-707.62,0.00017808,2]
[371737297,1752408654652,-460.0,0.00017808,2]
[371737298,1752408654661,-500.94,0.00017808,2]
[371737299,1752408654671,-460.0,0.00017808,2]
[371737300,1752408654680,-602.57,0.00017808,2]
[371737301,1752408654690,-939.64,0.00017808,2]
[371737302,1752408654699,-460.0,0.00017808,2]
[371737303,1752408654709,-460.0,0.00017808,2]
[371737304,1752408654718,-460.0,0.00017808,2]
[371737305,1752408654728,-1083.77,0.00017808,2]
[371737306,1752408654737,-525.69,0.00017808,2]
[371737307,1752408654747,-460.0,0.00017808,2]
[371737308,1752408654757,-460.0,0.00017808,2]
[371737309,1752408654767,-460.0,0.00017808,2]
[371737310,1752408654776,-460.0,0.00017808,2]
[371737311,1752408654785,-662.48,0.00017808,2]
[371737312,1752408654795,-460.0,0.00017808,2]
[371737313,1752408654804,-460.0,0.00017808,2]
[371737314,1752408654814,-460.0,0.00017808,2]
[371737315,1752408654823,-460.0,0.00017808,2]
[371737316,1752408654833,-2526.29,0.00017808,2]
[371737317,1752408654842,-694.75,0.00017808,2]
[371737318,1752408654851,-1097.19,0.00017808,2]
[371737319,1752408654861,-460.0,0.00017808,2]
[371737320,1752408654871,-460.0,0.00017808,2]
[371737321,1752408654880,-460.0,0.00017808,2]
[371737322,1752408654890,-578.96,0.00017808,2]
[371737323,1752408654902,-560.96,0.00017808,2]
[371737324,1752408654911,-1292.24,0.00017808,2]
[371737325,1752408654921,-244.37188627,0.00017809,2]
[371737326,1752408654931,-500.0,0.00017811,2]
[371737327,1752408654940,-500.0,0.0001783,2]
[371737328,1752408654950,-2899.58639643,0.00017831,2]
[371737329,1752408654959,-420.0,0.00017855,2]
[371737330,1752408655071,-449.33250482,0.00017868,2]
[371737331,1752408655083,-1500.0,0.00017868,2]
[371737332,1752408655092,-1500.0,0.00017868,2]
[371737333,1752408655101,-1500.0,0.00017868,2]
[371737334,1752408655110,-315.32243225,0.00017868,2]
[371737335,1752408655120,-1500.0,0.00017868,2]
[371737336,1752408655129,-976.77120229,0.00017868,2]
[371737337,1752408655138,-151.0,0.00017878,2]
[371737338,1752408655148,-289.935429,0.00017878,2]
[371737339,1752408655158,-289.935429,0.00017878,2]
[371737340,1752408655167,-238.845428,0.00017878,2]
[371737341,1752408655177,-238.845428,0.00017878,2]
[371737342,1752408655187,-1000.0,0.00017899,2]
[371737343,1752408655199,-500.0,0.00018068,2]
[371737344,1752408655210,-502.22361763,0.00018068,2]
[371737345,1752408655220,-509.02355026,0.00018068,2]
[371737346,1752408655229,-502.3432928,0.00018073,2]
[371737347,1752408655239,-216.764323,0.00018081,2]
[371737348,1752408655248,-216.764323,0.00018081,2]
[371737349,1752408655257,-460.0,0.00018082,2]
[371737350,1752408655266,-460.0,0.00018082,2]
[371737351,1752408655276,-460.0,0.00018082,2]
[371737352,1752408655286,-545.2,0.00018082,2]
[371737353,1752408655295,-591.03,0.00018082,2]
[371737354,1752408655305,-460.0,0.00018082,2]
[371737355,1752408655314,-460.0,0.00018082,2]
[371737356,1752408655323,-460.0,0.00018082,2]
[371737357,1752408655333,-391.36245312,0.00018082,2]
[371737358,1752408655342,-460.0,0.00018082,2]
[371737359,1752408655352,-460.0,0.00018082,2]
[371737360,1752408655362,-460.0,0.00018082,2]
[371737361,1752408655373,-510.43,0.00018082,2]
[371737362,1752408655385,-460.0,0.00018082,2]
[371737363,1752408655395,-460.0,0.00018082,2]
[371737364,1752408655404,-460.0,0.00018082,2]
[371737365,1752408655413,-460.0,0.00018082,2]